[Event "Slovakia Open 2022"]
[Site "Bratislava"]
[Date "2022.10.01"]
[Round "4.30"]
[White "Merva Max"]
[Black "Migalko, Dmitriy"]
[Result "0-1"]
[ECO "B40"]
[WhiteElo "1000"]
[BlackElo "1528"]
[Annotator "NA RC COMBH"]
[PlyCount "85"]
[EventDate "2022.09.30"]
[EventCountry "SVK"]
[SourceTitle "playchess.com"]
[Source "ChessBase"]
[SourceQuality "1"]
[TimeControl "2700+10"]

1. e4 {[%emt 0:00:03]} c5 {[%emt 0:00:04]} 2. Nf3 {[%emt 0:00:02]} e6 {[%emt 0:00:01]} 3. Nc3 {[%emt 0:00:17]} Nc6 {[%emt 0:00:05]} 4. Bb5 {[%emt 0:00:09]} d5 {[%emt 0:00:13]} 5. e5 {[%emt 0:00:08]} Be7 {[%emt 0:00:22]} 6. d3 {[%emt 0:00:09]} d4 {[%emt 0:00:02]} 7. Ne4 {[%emt 0:00:20]} Qa5+ {[%emt 0:00:03]} 8. Qd2 {[%emt 0:00:05]} Qxb5 {[%emt 0:00:03]} 9. O-O {[%emt 0:00:07]} Nh6 {[%emt 0:00:27]} 10. Qd1 {[%emt 0:00:06]} Ng4 {[%emt 0:00:34]} 11. Bg5 {[%emt 0:00:28]} Ngxe5 {[%emt 0:00:26]} 12. Bxe7 {[%emt 0:00:09]} Nxf3+ {[%emt 0:00:03]} 13. Qxf3 {[%emt 0:00:08]} Kxe7 {[%emt 0:00:02]} 14. Qg4 {[%emt 0:00:26]} Rg8 {[%emt 0:00:18]} 15. Qg5+ {[%emt 0:00:09]} Kf8 {[%emt 0:01:09]} 16. c4 {[%emt 0:00:16]} dxc3 {[%emt 0:00:23]} 17. bxc3 {[%emt 0:00:08]} Bd7 {[%emt 0:02:19]} 18. Rfb1 {[%emt 0:00:10]} Qxd3 {[%emt 0:01:10]} 19. Qd2 {[%emt 0:00:13]} Qxd2 {[%emt 0:00:05]} 20. Nxd2 {[%emt 0:00:02]} b6 {[%emt 0:00:03]} 21. Re1 {[%emt 0:00:33]} Ke7 {[%emt 0:00:05]} 22. f4 {[%emt 0:00:13]} f6 {[%emt 0:00:19]} 23. f5 {[%emt 0:00:07]} e5 {[%emt 0:00:02]} 24. g4 {[%emt 0:00:14]} Rad8 {[%emt 0:00:04]} 25. a4 {[%emt 0:00:34]} Bxf5 {[%emt 0:00:09]} 26. Red1 {[%emt 0:00:09]} Bxg4 {[%emt 0:00:02]} 27. Rdc1 {[%emt 0:01:28]} Rxd2 {[%emt 0:00:03]} 28. h3 {[%emt 0:00:09]} Bf3 {[%emt 0:00:11]} 29. h4 {[%emt 0:00:19]} Rg2+ {[%emt 0:00:03]} 30. Kf1 {[%emt 0:00:03]} Rd8 {[%emt 0:00:10]} 31. Rd1 {[%emt 0:00:04]} Rxd1+ {[%emt 0:00:05]} 32. Rxd1 {[%emt 0:00:01]} Bxd1 {[%emt 0:00:01]} 33. Kxg2 {[%emt 0:00:02]} Bxa4 {[%emt 0:00:01]} 34. c4 {[%emt 0:00:18]} e4 {[%emt 0:00:01]} 35. Kf2 {[%emt 0:00:04]} Nd4 {[%emt 0:00:02]} 36. Ke3 {[%emt 0:00:04]} Bc2 {[%emt 0:00:01]} 37. h5 {[%emt 0:00:09]} Nf5+ {[%emt 0:00:06]} 38. Kf4 {[%emt 0:00:04]} e3 {[%emt 0:00:02]} 39. Kf3 {[%emt 0:00:07]} Bd1+ {[%emt 0:00:02]} 40. Ke4 {[%emt 0:00:04]} e2 {[%emt 0:00:03]} 41. Kxf5 {[%emt 0:00:10]} e1=Q {[%emt 0:00:06]} 42. h6 {[%emt 0:00:03]} g6+ {[%emt 0:00:03]} 43. Kf4 {[%emt 0:00:06]} 0-1

[Event "Slovakia Open 2022"]
[Site "Bratislava"]
[Date "2022.10.01"]
[Round "4.31"]
[White "Pasti, Zsombor"]
[Black "Nosal, Tobias"]
[Result "1-0"]
[ECO "B33"]
[WhiteElo "1884"]
[BlackElo "1601"]
[Annotator "NA RC COMBH"]
[PlyCount "63"]
[EventDate "2022.09.30"]
[EventCountry "SVK"]
[SourceTitle "playchess.com"]
[Source "ChessBase"]
[SourceQuality "1"]
[TimeControl "2700+10"]

1. e4 {[%emt 0:00:05]} c5 {[%emt 0:00:01]} 2. Nf3 {[%emt 0:00:01]} Nc6 {[%emt 0:00:02]} 3. d4 {[%emt 0:00:01]} cxd4 {[%emt 0:00:01]} 4. Nxd4 {[%emt 0:00:02]} Nf6 {[%emt 0:00:01]} 5. Nc3 {[%emt 0:00:01]} e5 {[%emt 0:00:10]} 6. Ndb5 {[%emt 0:00:02]} d6 {[%emt 0:00:00]} 7. Nd5 {[%emt 0:00:01]} Nxd5 {[%emt 0:00:00]} 8. exd5 {[%emt 0:00:02]} Nb8 {[%emt 0:00:03]} 9. c4 {[%emt 0:00:04]} Be7 {[%emt 0:00:04]} 10. Be3 {[%emt 0:00:07]} a6 {[%emt 0:01:02]} 11. Nc3 {[%emt 0:00:03]} a5 {[%emt 0:02:28]} 12. Be2 {[%emt 0:00:25]} O-O {[%emt 0:00:08]} 13. O-O {[%emt 0:00:03]} f5 {[%emt 0:01:09]} 14. Qb3 {[%emt 0:00:27]} f4 {[%emt 0:07:40]} 15. Bb6 {[%emt 0:00:02]} Qe8 {[%emt 0:00:12]} 16. c5 {[%emt 0:00:55]} Qg6 {[%emt 0:01:29]} 17. Nb5 {[%emt 0:01:01]} e4 {[%emt 0:11:38]} 18. Kh1 {[%emt 0:02:31]} Bf5 {[%emt 0:09:35]} 19. Nc7 {[%emt 0:02:07]} f3 {[%emt 0:02:07]} 20. gxf3 {[%emt 0:00:08]} exf3 {[%emt 0:00:10]} 21. Bxf3 {[%emt 0:00:41]} Be4 {[%emt 0:00:35]} 22. Bxe4 {[%emt 0:00:20]} Qxe4+ {[%emt 0:00:02]} 23. f3 {[%emt 0:00:01]} Qh4 {[%emt 0:03:03]} 24. Nxa8 {[%emt 0:00:12]} Rf6 {[%emt 0:01:49]} 25. Qe3 {[%emt 0:00:37]} Rh6 {[%emt 0:01:36]} 26. Qf2 {[%emt 0:00:05]} Qh5 {[%emt 0:01:09]} 27. Bc7 {[%emt 0:01:42]} Bh4 {[%emt 0:02:05]} 28. Qg2 {[%emt 0:00:27]} Rg6 {[%emt 0:00:34]} 29. Qe2 {[%emt 0:00:02]} Rh6 {[%emt 0:00:38]} 30. Bxb8 {[%emt 0:00:45]} Bg3 {[%emt 0:00:04]} 31. Bxd6 {[%emt 0:00:20]} Bxh2 {[%emt 0:00:11]} 32. Bxh2 {[%emt 0:00:05]} 1-0

[Event "Slovakia Open 2022"]
[Site "Bratislava"]
[Date "2022.10.01"]
[Round "4.32"]
[White "Nikpour Aryabod"]
[Black "Park, Seonjae"]
[Result "0-1"]
[ECO "B22"]
[WhiteElo "1000"]
[BlackElo "1704"]
[Annotator "NA COMBH"]
[PlyCount "111"]
[EventDate "2022.09.30"]
[EventCountry "SVK"]
[SourceTitle "playchess.com"]
[Source "ChessBase"]
[SourceQuality "1"]
[TimeControl "2700+10"]

1. e4 {[%emt 0:00:06]} c5 {[%emt 0:00:01]} 2. c3 {[%emt 0:00:01]} Nf6 {[%emt 0:00:17]} 3. e5 {[%emt 0:00:02]} Nd5 {[%emt 0:00:01]} 4. d4 {[%emt 0:00:01]} cxd4 {[%emt 0:00:02]} 5. cxd4 {[%emt 0:00:02]} d6 {[%emt 0:01:06]} 6. Nf3 {[%emt 0:00:02]} Nc6 {[%emt 0:00:16]} 7. Bb5 {[%emt 0:01:43]} Qa5+ {[%emt 0:02:27]} 8. Nc3 {[%emt 0:00:03]} Nxc3 {[%emt 0:00:41]} 9. Bxc6+ {[%emt 0:00:08]} bxc6 {[%emt 0:00:08]} 10. Qd2 {[%emt 0:03:01]} d5 {[%emt 0:01:34]} 11. Qxc3 {[%emt 0:01:17]} Qxc3+ {[%emt 0:00:47]} 12. bxc3 {[%emt 0:00:03]} Ba6 {[%emt 0:00:48]} 13. Ba3 {[%emt 0:01:42]} Bd3 {[%emt 0:09:47]} 14. Nd2 {[%emt 0:07:35]} e6 {[%emt 0:08:11]} 15. Bxf8 {[%emt 0:07:48]} Rxf8 {[%emt 0:00:02]} 16. f4 {[%emt 0:00:11]} Ke7 {[%emt 0:05:36]} 17. Nb3 {[%emt 0:04:22]} Rfb8 {[%emt 0:02:20]} 18. Nc5 {[%emt 0:04:21]} Bg6 {[%emt 0:00:26]} 19. Na6 {[%emt 0:01:41]} Rb2 {[%emt 0:02:28]} 20. O-O {[%emt 0:02:15]} Bd3 {[%emt 0:00:25]} 21. Nb4 {[%emt 0:00:56]} Bxf1 {[%emt 0:00:16]} 22. Kxf1 {[%emt 0:00:12]} a5 {[%emt 0:00:48]} 23. Nd3 {[%emt 0:00:53]} Rc2 {[%emt 0:00:46]} 24. Nc5 {[%emt 0:00:25]} Rxc3 {[%emt 0:00:20]} 25. Rb1 {[%emt 0:00:01]} Ra7 {[%emt 0:00:02]} 26. Rb2 {[%emt 0:00:16]} Rc4 {[%emt 0:01:06]} 27. Rd2 {[%emt 0:00:20]} a4 {[%emt 0:00:42]} 28. Kf2 {[%emt 0:00:50]} Ra5 {[%emt 0:01:10]} 29. Nb7 {[%emt 0:00:21]} Ra7 {[%emt 0:00:01]} 30. Nd6 {[%emt 0:00:02]} Kd8 {[%emt 0:01:04]} 31. Nxc4 {[%emt 0:00:08]} Kd7 {[%emt 0:00:00]} 32. Rc2 {[%emt 0:00:10]} dxc4 {[%emt 0:00:00]} 33. Rxc4 {[%emt 0:00:00]} Kc7 {[%emt 0:00:05]} 34. Kf3 {[%emt 0:00:04]} Ra8 {[%emt 0:00:16]} 35. a3 {[%emt 0:00:10]} Kd7 {[%emt 0:00:37]} 36. Ke4 {[%emt 0:00:08]} Ra5 {[%emt 0:00:12]} 37. f5 {[%emt 0:00:03]} Ra7 {[%emt 0:00:23]} 38. fxe6+ {[%emt 0:00:19]} fxe6 {[%emt 0:00:10]} 39. Rb4 {[%emt 0:00:10]} Ke7 {[%emt 0:00:10]} 40. Rb8 {[%emt 0:00:10]} Ra6 {[%emt 0:00:08]} 41. Rc8 {[%emt 0:00:05]} Kf7 {[%emt 0:00:00]} 42. Kd3 {[%emt 0:00:08]} Rb6 {[%emt 0:01:03]} 43. Kc4 {[%emt 0:00:10]} Rb3 {[%emt 0:00:10]} 44. Rxc6 {[%emt 0:00:10]} Rxa3 {[%emt 0:00:10]} 45. Rc5 {[%emt 0:00:10]} Ra2 {[%emt 0:00:00]} 46. Ra5 {[%emt 0:00:03]} Kg6 {[%emt 0:00:00]} 47. Ra8 {[%emt 0:00:04]} Kf7 {[%emt 0:00:07]} 48. Ra7+ {[%emt 0:00:17]} Kf8 {[%emt 0:00:10]} 49. Kc5 {[%emt 0:00:10]} Rxg2 {[%emt 0:00:10]} 50. Kd6 {[%emt 0:00:01]} Rg6 {[%emt 0:00:05]} 51. Ra8+ {[%emt 0:00:04]} Kf7 {[%emt 0:00:02]} 52. Rxa4 {[%emt 0:00:05]} Rh6 {[%emt 0:00:23]} 53. Ra7+ {[%emt 0:00:08]} Kf8 {[%emt 0:00:01]} 54. Ra2 {[%emt 0:00:06]} g5 {[%emt 0:00:07]} 55. Rf2+ {[%emt 0:00:05]} Ke8 {[%emt 0:00:10]} 56. Rf6 {[%emt 0:00:13]} 0-1

[Event "Slovakia Open 2022"]
[Site "Bratislava"]
[Date "2022.10.01"]
[Round "4.33"]
[White "Benci, Jozef"]
[Black "Ruderfer, Mark B"]
[Result "1-0"]
[ECO "B13"]
[WhiteElo "1873"]
[BlackElo "2236"]
[Annotator "TA"]
[PlyCount "61"]
[EventDate "2022.09.30"]
[EventCountry "SVK"]
[SourceTitle "playchess.com"]
[Source "ChessBase"]
[SourceQuality "1"]
[TimeControl "2700+10"]

{[%evp 9,60,11,12,0,41,31,36,37,43,31,54,31,53,45,50,48,54,53,117,51,122,55,56,67,58,54,79,68,63,59,98,93,147,160,139,139,158,147,650,650,29993,4002,29996,29981,5385,5469,3295,5186,29974,29978,29951,6191,29999]} 1. e4 {[%emt 0:00:09]} c6 {[%emt 0:00:18]} 2. d4 {[%emt 0:00:16]} d5 {[%emt 0:00:03]} 3. exd5 {[%emt 0:00:23]} cxd5 {[%emt 0:00:03]} 4. Bd3 {[%emt 0:00:03]} Nf6 {[%emt 0:00:03]} 5. Bf4 {[%emt 0:00:23]} Bg4 {[%emt 0:00:23]} 6. Ne2 {[%emt 0:01:44] [#] B13: Caro-Kann: Exchange Variation and Panov-Botvinnik Attack.} Bxe2 $146 {[%emt 0:00:40]} ({Predecessor:} 6... e6 7. h3 Bh5 8. c3 Bd6 9. Qa4+ Nc6 10. Bxd6 Qxd6 11. Qa3 Qxa3 12. Nxa3 Bg6 13. Bxg6 hxg6 {0-1 (43) Borda Rodas,A (2162)-Tokman,A (2316) Villa Martelli 2021}) 7. Qxe2 {[%emt 0:00:16]} Qb6 {[%emt 0:00:26]} 8. c3 {[%emt 0:00:36] White is slightly better.} e6 {[%emt 0:00:03]} 9. O-O {[%emt 0:03:23]} Be7 {[%emt 0:00:11]} 10. Qc2 {[%emt 0:07:16]} O-O {[%emt 0:01:35]} 11. Nd2 {[%emt 0:01:40]} Nc6 {[%emt 0:00:37]} 12. Nf3 {[%emt 0:00:42]} h6 {[%emt 0:00:56]} 13. Rfe1 {[%emt 0:00:55]} Rac8 {[%emt 0:00:57]} (13... Rfd8 $14) 14. Qe2 {[%emt 0:02:53]} ({White should play} 14. Qd2 $16) 14... a5 {[%emt 0:01:25] [#]} ({Better is} 14... Ne4 $14) 15. Ne5 {[%emt 0:02:18]} ({White should try} 15. Qd2 $1 $16) 15... Nxe5 $14 {[%emt 0:05:24]} 16. Bxe5 {[%emt 0:04:11]} a4 {[%emt 0:03:27]} 17. a3 {[%emt 0:01:47]} Rfd8 {[%emt 0:01:46]} 18. Rab1 {[%emt 0:03:38]} Nd7 {[%emt 0:01:54]} 19. Bf4 {[%emt 0:00:38]} Bf8 {[%emt 0:00:48]} 20. Qg4 {[%emt 0:00:52] Threatens to win with Bxh6.} Kh8 {[%emt 0:01:49]} (20... Nf6 $142 21. Qf3 Be7) 21. Re3 $16 {[%emt 0:01:59][%cal Be1e3,Be3h3,Bh3g3,Bg3g8][%mdl 32] White is more active.} Nf6 {[%emt 0:01:45]} 22. Qh4 {[%emt 0:01:08][%cal Of4h6] [#] Hoping for Bxh6!} Ne4 {[%emt 0:02:43]} 23. Rh3 {[%emt 0:06:51]} ({But not} 23. Bxe4 $6 dxe4 24. Qh5 (24. Rxe4 Rxc3 25. Be3 Rd3 $15) 24... Rd7 $16) 23... g5 $2 {[%emt 0:04:46][%mdl 8192] This move loses the game for Black.} (23... Rd7 $16 24. f3 Nd6) 24. Bxg5 $1 $18 {[%emt 0:01:00]} ({Weaker is} 24. Be5+ f6 25. Bxf6+ Nxf6 $11) 24... Rd7 {[%emt 0:02:05]} 25. Bxe4 {[%emt 0:02:02]} (25. Bxh6 $142 f6 26. Bxf8+ Kg8 27. Bxe4 e5 28. Qh8+ Kf7 29. Rh7+ Ke6 30. Qg8+ Rf7 31. Qxf7#) 25... Kg8 {[%emt 0:04:00]} 26. Bxh6 {[%emt 0:00:53]} f5 {[%emt 0:00:58]} 27. Bxf8 {[%emt 0:00:56]} Rxf8 {[%emt 0:00:25]} 28. Rg3+ {[%emt 0:00:20]} Kf7 {[%emt 0:00:33]} 29. Bf3 {[%emt 0:00:13][%cal Rf3h5]} Ke8 {[%emt 0:02:31]} 30. Bh5+ {[%emt 0:00:05]} Rff7 {[%emt 0:00:03]} 31. Rg8# {[%emt 0:00:10] Weighted Error Value: White=0.10 (very precise) /Black=1.14} 1-0

[Event "Slovakia Open 2022"]
[Site "Bratislava"]
[Date "2022.10.01"]
[Round "4.34"]
[White "Rehacek, Oldrich"]
[Black "Pekar, Matus"]
[Result "0-1"]
[ECO "A01"]
[WhiteElo "1366"]
[BlackElo "1679"]
[Annotator "NA COMBH"]
[PlyCount "94"]
[EventDate "2022.09.30"]
[EventCountry "SVK"]
[SourceTitle "playchess.com"]
[Source "ChessBase"]
[SourceQuality "1"]
[TimeControl "2700+10"]

1. b3 {[%emt 0:00:18]} d6 {[%emt 0:07:03]} 2. Bb2 {[%emt 0:00:09]} e5 {[%emt 0:00:24]} 3. e3 {[%emt 0:00:04]} Nf6 {[%emt 0:00:04]} 4. d4 {[%emt 0:00:25]} e4 {[%emt 0:00:51]} 5. c4 {[%emt 0:00:03]} g6 {[%emt 0:00:50]} 6. d5 {[%emt 0:00:30]} Bg7 {[%emt 0:00:28]} 7. Ne2 {[%emt 0:00:08]} Bg4 {[%emt 0:00:36]} 8. Nd2 {[%emt 0:00:33]} O-O {[%emt 0:00:19]} 9. Qc2 {[%emt 0:00:19]} Bxe2 {[%emt 0:00:51]} 10. Bxe2 {[%emt 0:00:03]} Re8 {[%emt 0:01:02]} 11. O-O {[%emt 0:01:07]} a5 {[%emt 0:00:38]} 12. a4 {[%emt 0:00:58]} Nbd7 {[%emt 0:00:16]} 13. Rad1 {[%emt 0:02:06]} Qe7 {[%emt 0:01:13]} 14. Bd4 {[%emt 0:00:29]} c5 {[%emt 0:01:50]} 15. dxc6 {[%emt 0:00:40]} bxc6 {[%emt 0:02:15]} 16. Nb1 {[%emt 0:02:07]} h5 {[%emt 0:01:46]} 17. Rd2 {[%emt 0:01:53]} Red8 {[%emt 0:03:33]} 18. Rfd1 {[%emt 0:00:16]} h4 {[%emt 0:00:49]} 19. h3 {[%emt 0:00:56]} Ne5 {[%emt 0:02:17]} 20. Qb2 {[%emt 0:03:19]} Nfd7 {[%emt 0:01:21]} 21. Qa3 {[%emt 0:00:47]} Nf8 {[%emt 0:04:21]} 22. c5 {[%emt 0:01:47]} d5 {[%emt 0:00:18]} 23. Qb2 {[%emt 0:00:43]} Rdb8 {[%emt 0:00:32]} 24. Rc1 {[%emt 0:01:04]} Qg5 {[%emt 0:01:45]} 25. Rf1 {[%emt 0:01:38]} Nf3+ {[%emt 0:01:48]} 26. Bxf3 {[%emt 0:00:40]} exf3 {[%emt 0:00:03]} 27. g4 {[%emt 0:03:12]} Bxd4 {[%emt 0:00:17]} 28. Rxd4 {[%emt 0:00:39]} Ne6 {[%emt 0:00:06]} 29. Rd3 {[%emt 0:01:37]} Nxc5 {[%emt 0:01:38]} 30. Rc3 {[%emt 0:00:39]} Nxa4 {[%emt 0:00:09]} 31. Qc2 {[%emt 0:00:25]} Nxc3 {[%emt 0:00:22]} 32. Qxc3 {[%emt 0:00:02]} Rc8 {[%emt 0:00:43]} 33. Nd2 {[%emt 0:00:08]} Qe7 {[%emt 0:00:53]} 34. Nxf3 {[%emt 0:00:17]} Rc7 {[%emt 0:02:21]} 35. Rc1 {[%emt 0:00:52]} c5 {[%emt 0:02:19]} 36. Rd1 {[%emt 0:00:40]} Qd8 {[%emt 0:00:44]} 37. Qe5 {[%emt 0:01:38]} Rd7 {[%emt 0:00:24]} 38. g5 {[%emt 0:00:37]} Rb8 {[%emt 0:00:23]} 39. Rb1 {[%emt 0:01:00]} Rb4 {[%emt 0:00:07]} 40. Qc3 {[%emt 0:00:34]} Qe7 {[%emt 0:00:39]} 41. Kh1 {[%emt 0:02:13]} Qe4 {[%emt 0:00:16]} 42. Qxc5 {[%emt 0:01:24]} Qxb1+ {[%emt 0:00:33]} 43. Kh2 {[%emt 0:00:02]} Qf5 {[%emt 0:00:20]} 44. Qc8+ {[%emt 0:01:07]} Kg7 {[%emt 0:00:02]} 45. Qc3+ {[%emt 0:00:11]} d4 {[%emt 0:00:06]} 46. exd4 {[%emt 0:00:31]} Rd8 {[%emt 0:00:51]} 47. d5+ {[%emt 0:00:45]} Kg8 {[%emt 0:00:10]} 0-1

[Event "Slovakia Open 2022"]
[Site "Bratislava"]
[Date "2022.10.01"]
[Round "4.35"]
[White "Kluckova, Alzbeta"]
[Black "Dubnicka, Ferdinand"]
[Result "0-1"]
[ECO "B92"]
[WhiteElo "1097"]
[BlackElo "1494"]
[Annotator "NA RC COMBH"]
[PlyCount "51"]
[EventDate "2022.09.30"]
[EventCountry "SVK"]
[SourceTitle "playchess.com"]
[Source "ChessBase"]
[SourceQuality "1"]
[TimeControl "2700+10"]

1. e4 {[%emt 0:06:31]} c5 {[%emt 0:00:02]} 2. Nf3 {[%emt 0:00:11]} d6 {[%emt 0:00:13]} 3. Be2 {[%emt 0:00:18]} Nc6 {[%emt 0:00:19]} 4. d4 {[%emt 0:00:15]} cxd4 {[%emt 0:00:11]} 5. Nxd4 {[%emt 0:00:05]} Nf6 {[%emt 0:00:09]} 6. Nc3 {[%emt 0:02:51]} a6 {[%emt 0:00:07]} 7. O-O {[%emt 0:00:06]} e5 {[%emt 0:00:01]} 8. Nxc6 {[%emt 0:00:02]} bxc6 {[%emt 0:00:01]} 9. Be3 {[%emt 0:01:02]} Be7 {[%emt 0:00:02]} 10. Na4 {[%emt 0:00:21]} O-O {[%emt 0:00:08]} 11. Qd2 {[%emt 0:01:33]} c5 {[%emt 0:00:02]} 12. b4 {[%emt 0:00:48]} Nxe4 {[%emt 0:01:01]} 13. Qd3 {[%emt 0:00:10]} Bb7 {[%emt 0:00:10]} 14. bxc5 {[%emt 0:00:22]} dxc5 {[%emt 0:00:14]} 15. Qxd8 {[%emt 0:02:09]} Rfxd8 {[%emt 0:00:04]} 16. Bd3 {[%emt 0:00:37]} Rac8 {[%emt 0:00:19]} 17. f3 {[%emt 0:01:29]} Nf6 {[%emt 0:00:03]} 18. c4 {[%emt 0:02:24]} Rxd3 {[%emt 0:00:10]} 19. Bf2 {[%emt 0:00:16]} e4 {[%emt 0:00:37]} 20. fxe4 {[%emt 0:01:06]} Nxe4 {[%emt 0:00:04]} 21. Nb6 {[%emt 0:00:19]} Rcd8 {[%emt 0:00:15]} 22. Na4 {[%emt 0:02:17]} Nxf2 {[%emt 0:00:03]} 23. Kxf2 {[%emt 0:03:33]} Rd2+ {[%emt 0:00:08]} 24. Kg1 {[%emt 0:00:07]} Bc6 {[%emt 0:00:02]} 25. Nb6 {[%emt 0:01:14]} Bf6 {[%emt 0:00:02]} 26. Rab1 {[%emt 0:00:35]} 0-1

[Event "Slovakia Open 2022"]
[Site "Bratislava"]
[Date "2022.10.01"]
[Round "4.36"]
[White "Kostic, Ivan"]
[Black "Nedoba, Jakub"]
[Result "1-0"]
[ECO "D04"]
[WhiteElo "1716"]
[BlackElo "1160"]
[Annotator "NA COMBH"]
[PlyCount "75"]
[EventDate "2022.09.30"]
[EventCountry "SVK"]
[SourceTitle "playchess.com"]
[Source "ChessBase"]
[SourceQuality "1"]
[TimeControl "2700+10"]

1. d4 {[%emt 0:00:39]} d5 {[%emt 0:05:14]} 2. e3 {[%emt 0:01:43]} Bf5 {[%emt 0:00:14]} 3. Nf3 {[%emt 0:00:26]} e6 {[%emt 0:00:12]} 4. b3 {[%emt 0:00:51]} Nf6 {[%emt 0:00:46]} 5. Bb2 {[%emt 0:00:10]} Bg6 {[%emt 0:00:10]} 6. Nbd2 {[%emt 0:00:10]} c5 {[%emt 0:00:10]} 7. Bb5+ {[%emt 0:00:10]} Nbd7 {[%emt 0:00:10]} 8. b4 {[%emt 0:00:10]} cxd4 {[%emt 0:00:10]} 9. Nxd4 {[%emt 0:00:10]} Be7 {[%emt 0:00:10]} 10. Be2 {[%emt 0:00:12]} a6 {[%emt 0:00:10]} 11. c4 {[%emt 0:00:15]} O-O {[%emt 0:00:39]} 12. c5 {[%emt 0:00:11]} Rc8 {[%emt 0:01:21]} 13. Rc1 {[%emt 0:00:10]} a5 {[%emt 0:03:05]} 14. Ra1 {[%emt 0:00:10]} b6 {[%emt 0:01:07]} 15. N4f3 {[%emt 0:00:36]} bxc5 {[%emt 0:02:01]} 16. Nh4 {[%emt 0:06:10]} Ne4 {[%emt 0:05:09]} 17. Nxg6 {[%emt 0:01:39]} hxg6 {[%emt 0:00:10]} 18. bxc5 {[%emt 0:00:10]} Ndxc5 {[%emt 0:00:10]} 19. O-O {[%emt 0:00:10]} f6 {[%emt 0:00:10]} 20. Nf3 {[%emt 0:00:10]} Kf7 {[%emt 0:00:41]} 21. Nh4 {[%emt 0:06:06]} Qc7 {[%emt 0:02:07]} 22. g3 {[%emt 0:00:10]} Rh8 {[%emt 0:00:35]} 23. Kg2 {[%emt 0:01:27]} Bd6 {[%emt 0:00:47]} 24. Nf3 {[%emt 0:02:06]} Rh7 {[%emt 0:01:40]} 25. Rh1 {[%emt 0:00:46]} Qb8 {[%emt 0:01:53]} 26. Nd4 {[%emt 0:00:05]} Re8 {[%emt 0:00:23]} 27. Qc2 {[%emt 0:02:04]} Reh8 {[%emt 0:00:11]} 28. Rab1 {[%emt 0:00:41]} Rxh2+ {[%emt 0:03:00]} 29. Rxh2 {[%emt 0:00:10]} Rxh2+ {[%emt 0:00:10]} 30. Kxh2 {[%emt 0:00:10]} Bxg3+ {[%emt 0:00:10]} 31. Kg2 {[%emt 0:00:10]} Bxf2 {[%emt 0:01:05]} 32. Rh1 {[%emt 0:03:00]} Qg3+ {[%emt 0:00:30]} 33. Kf1 {[%emt 0:00:12]} Bxe3 {[%emt 0:01:14]} 34. Bf3 {[%emt 0:02:30]} Nd2+ {[%emt 0:00:28]} 35. Ke2 {[%emt 0:00:28]} Qf2+ {[%emt 0:00:10]} 36. Kd1 {[%emt 0:00:17]} e5 {[%emt 0:06:16]} 37. Qxc5 {[%emt 0:01:43]} Nb3 {[%emt 0:03:08]} 38. Qc7+ {[%emt 0:00:09]} 1-0